bitfinex-derivatives/quotes_SOLF0:USTF0_20240920
["timestamp","ask_amount","ask_price","bid_price","bid_amount"]
[1726859471928,3.42,146.19,146.15,3.4207]
[1726859472324,3.42,146.19,146.13,3.478508]
[1726859472931,19.8499,146.2,146.16,3.4206]
[1726859473931,16.43,146.2,146.12,1.3952]
[1726859474124,16.43,146.18,146.12,1.3952]
[1726859474329,19.8504,146.18,146.12,1.3952]
[1726859475431,19.8504,146.18,146.14,3.421]
[1726859477732,16.43,146.2,146.12,1.3952]
[1726859477933,1.2904,146.21,146.13,19.92229527]
[1726859478333,4.7099,146.21,146.13,19.92229527]
[1726859479537,17.7204,146.21,146.13,3.49229527]
[1726859479928,21.14,146.21,146.17,3.4202]
[1726859480128,1.2904,146.21,146.14,3.42477936]
[1726859480728,1.2904,146.21,146.15,16.43]
[1726859480935,1.3877,146.25,146.17,16.43]
[1726859481531,3.4189,146.24,146.17,16.43]
[1726859481839,16.43,146.23,146.13,17.8365]
[1726859482141,3.4197,146.21,146.17,3.4203]
[1726859483139,3.4199,146.2,146.16,3.4206]
[1726859484343,3.4196,146.21,146.17,3.4204]
[1726859484545,3.4196,146.21,146.14,3.41028798]
[1726859484740,16.43,146.23,146.14,3.41028798]
[1726859485133,3.4194,146.22,146.18,3.4201]
[1726859485836,3.4194,146.22,146.14,3.41028798]
[1726859486033,3.4194,146.22,146.13,17.8365]
[1726859486235,16.43,146.23,146.13,17.8365]
[1726859486236,19.8492,146.23,146.15,16.43]
[1726859486442,17.8177,146.25,146.15,19.85717383]
[1726859486642,17.8177,146.25,146.17,16.43]
[1726859487039,17.8177,146.25,146.19,3.4198]
[1726859487240,3.4194,146.22,146.15,16.43]
[1726859487643,17.8177,146.25,146.19,3.42]
[1726859487947,17.8177,146.25,146.15,16.43]
[1726859488139,17.8177,146.25,146.18,3.4201]
[1726859488749,3.4193,146.22,146.18,3.4201]
[1726859489342,3.4193,146.22,146.19,3.42]
[1726859489948,3.4193,146.22,146.18,3.4201]
[1726859490146,3.4195,146.21,146.18,3.4201]
[1726859490648,17.8177,146.25,146.19,3.42]
[1726859491551,3.4188,146.24,146.2,3.4196]
[1726859491849,17.8177,146.25,146.2,3.4196]
[1726859492051,3.4192,146.23,146.19,3.42]
[1726859492652,17.8177,146.25,146.19,3.42]
[1726859493648,3.4192,146.23,146.19,3.42]
[1726859494048,10.51,146.22,146.19,3.42]
[1726859494850,10.51,146.21,146.18,3.4201]
[1726859495547,3.4194,146.22,146.19,3.42]
[1726859495548,10.51,146.22,146.19,3.42]
[1726859495749,10.51,146.23,146.19,10.51]
[1726859495944,10.51,146.23,146.2,3.4196]
[1726859496345,10.51,146.23,146.19,10.51]
[1726859496556,10.51,146.23,146.2,3.4197]
[1726859498247,13.9291,146.23,146.2,3.4197]
[1726859499157,13.9294,146.22,146.18,10.51]
[1726859499451,10.51,146.21,146.16,10.51]
[1726859499849,10.51,146.21,146.17,3.4203]
[1726859499850,13.9295,146.21,146.17,3.4203]
[1726859500045,10.51,146.21,146.16,10.51]
[1726859500249,10.51,146.21,146.17,10.51]
[1726859500856,10.51,146.21,146.18,3.4201]
[1726859501654,13.9294,146.22,146.18,3.4201]
[1726859501963,13.9294,146.22,146.19,3.42]
[1726859502759,10.51,146.22,146.19,3.42]
[1726859502959,10.51,146.23,146.18,10.51]
[1726859503154,10.51,146.24,146.19,10.51]
[1726859503353,11.8752,146.26,146.21,10.51]
[1726859503756,15.2937,146.26,146.22,3.4191]
[1726859504458,100.92720712,146.29,146.15,6.834]
[1726859504459,10.51,146.29,146.24,10.51]
[1726859505466,10.51,146.27,146.25,3.4184]
[1726859505764,10.51,146.27,146.24,10.51]
[1726859506069,3.4181,146.28,146.24,3.4187]
[1726859506452,3.4181,146.28,146.2,16.41]
[1726859506657,3.4181,146.28,146.25,3.4185]
[1726859507468,3.4178,146.29,146.25,3.4185]
[1726859508261,3.4179,146.28,146.25,3.4185]
[1726859508470,17.7342,146.3,146.2,16.41]
[1726859508669,3.418,146.28,146.2,16.41]
[1726859509563,3.4177,146.29,146.25,3.4184]
[1726859509868,3.4177,146.29,146.22,16.41]
[1726859510760,3.4177,146.29,146.25,3.4184]
[1726859511164,3.4177,146.29,146.22,19.89888184]
[1726859512370,3.4177,146.29,146.26,3.4183]
[1726859513374,3.4177,146.29,146.27,3.4181]
[1726859513569,1.3242,146.3,146.24,16.41]
[1726859513875,1.3242,146.3,146.28,3.4177]
[1726859515965,4.7417,146.3,146.28,3.4177]
[1726859516876,3.4176,146.29,146.27,3.418]
[1726859517079,1.3242,146.3,146.23,16.41]
[1726859517582,17.7342,146.3,146.22,3.48888184]
[1726859517982,3.418,146.28,146.22,3.48888184]
[1726859518177,17.7342,146.3,146.22,19.89888184]
[1726859518481,17.7342,146.3,146.22,16.41]
[1726859518977,3.4178,146.29,146.22,19.84076923]
[1726859519392,3.4178,146.29,146.25,3.4184]
[1726859525999,13.9178,146.29,146.25,13.9184]
[1726859527091,10.5,146.28,146.22,3.43076923]
[1726859527288,1.3242,146.3,146.21,10.5]
[1726859527289,10.5,146.27,146.21,10.5]
[1726859527691,1.3465,146.29,146.21,10.5]
[1726859527992,10.5,146.25,146.21,10.5]
[1726859528693,13.9187,146.25,146.21,13.9193]
[1726859529093,1.3465,146.29,146.19,10.5]
[1726859529094,10.5,146.24,146.19,10.5]
[1726859529793,10.5,146.24,146.19,3.4199]
[1726859529988,1.3465,146.29,146.18,10.5]
[1726859530196,10.5,146.23,146.18,10.5]
[1726859531198,13.9192,146.23,146.19,3.4198]
[1726859531994,10.5,146.22,146.18,3.4202]
[1726859532390,13.9194,146.22,146.18,3.4202]
[1726859532899,1.3465,146.29,146.14,11.837]
[1726859532900,10.5,146.19,146.14,11.837]
[1726859533500,13.9201,146.19,146.16,3.4206]
[1726859537300,10.5,146.18,146.1,1.4025]
[1726859537609,10.5,146.14,146.1,10.5]
[1726859538298,1.3565,146.21,146.05,141.4798711]
[1726859538299,10.5,146.12,146.05,141.4798711]
[1726859538498,10.5,146.12,146.07,10.5]
[1726859538703,13.9218,146.12,146.07,13.9226]
[1726859539004,10.5,146.13,146.07,10.5]
[1726859539507,2.7509,146.14,146.07,10.5]
[1726859539711,2.7509,146.14,146.1,10.5]
[1726859539892,6.1723,146.14,146.1,10.5]
[1726859540097,13.2509,146.14,146.09,13.9223]
[1726859540605,3.4214,146.13,146.09,13.9223]
[1726859540900,13.2509,146.14,146.1,3.422]
[1726859541799,16.6722,146.14,146.1,3.422]
[1726859542499,3.4214,146.13,146.1,3.422]
[1726859546011,1.344,146.14,146.1,10.5]
[1726859546605,1.344,146.14,146.11,3.4217]
[1726859547502,11.844,146.14,146.11,3.4217]
[1726859547903,15.2652,146.14,146.11,3.4217]
[1726859549101,11.844,146.14,146.12,3.4216]
[1726859549305,1.344,146.14,146.11,10.5]
[1726859549601,11.844,146.14,146.1,10.5]
[1726859549807,11.844,146.14,146.11,3.4218]
[1726859550209,15.2652,146.14,146.11,3.4218]
[1726859555105,10.5,146.13,146.11,3.4218]
[1726859557211,10.5,146.13,146.1,3.422]
[1726859558815,10.5,146.11,146.05,4.7198711]
[1726859559013,10.5,146.1,146.05,15.2198711]
[1726859559317,1.344,146.14,146.04,10.5]
[1726859559318,10.5,146.09,146.04,10.5]
[1726859559814,10.5,146.09,146.04,13.83835307]
[1726859560211,10.5,146.09,146.07,3.4228]
[1726859560608,10.5,146.1,146.07,3.4228]
[1726859562516,13.9221,146.1,146.07,3.4228]
[1726859562808,10.5,146.1,146.07,3.4228]
[1726859563217,10.5,146.1,146.08,3.4225]
[1726859564609,10.5,146.09,146.07,3.4227]
[1726859564910,10.5,146.08,146.0,136.86]
[1726859565117,10.5,146.08,146.05,3.4232]
[1726859571529,13.9226,146.08,146.05,3.4232]
[1726859572426,10.5,146.08,146.05,3.4232]
[1726859574628,13.9226,146.08,146.05,3.4232]
[1726859574826,10.5,146.08,146.05,3.4232]
[1726859577623,13.9225,146.09,146.06,3.4229]
[1726859577825,10.5,146.09,146.04,10.5]
[1726859578027,10.5,146.1,146.05,10.5]
[1726859578221,10.5,146.1,146.07,3.4226]
[1726859579825,13.9221,146.1,146.07,3.4226]
[1726859580331,10.5,146.08,146.03,10.5]
[1726859580534,10.5,146.06,146.01,13.97859767]
[1726859580729,10.5,146.06,146.03,3.4236]
[1726859581237,10.5,146.04,146.0,3.4243]
[1726859581433,10.5,146.02,146.0,3.4243]
[1726859582637,10.5,146.02,145.98,10.5]
[1726859583133,10.5,146.02,145.99,3.4246]
[1726859584132,4.87284775,146.07,145.95,2.8151]
[1726859584133,10.5,146.01,145.95,2.8151]
[1726859584428,10.5,145.98,145.94,10.5]
[1726859584633,10.5,145.98,145.93,10.5]
[1726859584828,10.5,145.98,145.95,3.4254]
[1726859585328,10.5,145.97,145.95,3.4254]
[1726859586330,10.5,145.99,145.95,3.4254]
[1726859586725,10.5,145.99,145.96,3.4254]
[1726859587335,10.5,145.99,145.95,3.4255]
[1726859588135,13.9247,145.99,145.95,3.4255]
[1726859591440,25.37284775,146.07,145.94,10.5]
[1726859591644,10.5,146.0,145.95,10.5]
[1726859592144,13.9244,146.0,145.96,3.4252]
[1726859594748,13.9244,146.0,145.97,3.4251]
[1726859595945,10.5,146.0,145.97,3.4251]
[1726859596742,13.9245,146.0,145.97,3.4251]
[1726859600641,10.5,145.98,145.97,3.4251]
[1726859601549,10.5,145.98,145.96,3.4253]
[1726859601842,10.5,145.98,145.94,10.5]
[1726859602145,10.5,145.98,145.96,3.4252]
[1726859603654,10.5,145.98,145.95,3.4255]
[1726859604343,10.5,145.98,145.94,10.5]
[1726859605445,10.5,145.98,145.96,3.4252]
[1726859605651,10.5,145.98,145.94,10.5]
[1726859605851,10.5,145.98,145.97,3.4251]
[1726859606051,11.71884775,146.07,145.96,10.5]
[1726859606248,10.5,146.02,145.97,10.5]
[1726859606548,10.5,146.02,145.99,3.4245]
[1726859606754,10.5,146.01,145.99,3.4245]
[1726859607055,10.5,146.01,145.98,3.4248]
[1726859608556,4.87284775,146.07,145.99,10.5]
[1726859608848,10.5,146.04,146.0,10.5]
[1726859609043,10.5,146.02,145.99,3.4246]
[1726859610648,10.5,146.02,146.0,3.4244]
[1726859610848,10.5,146.03,146.0,3.4244]
[1726859611149,10.5,146.03,145.94,1.3211]
[1726859611150,1.3898,146.07,146.02,10.5]
[1726859611357,11.8898,146.07,146.02,10.5]
[1726859611651,11.8898,146.07,146.03,3.4236]
[1726859612055,11.8898,146.07,146.02,10.5]
[1726859612358,10.5,146.09,146.05,10.5]
[1726859613154,10.5,146.09,146.05,13.9232]
[1726859613546,10.5,146.08,146.05,3.4232]
[1726859613749,10.5,146.07,146.03,10.5]
[1726859614158,10.5,146.07,146.03,13.9236]
[1726859614754,10.5,146.06,146.03,3.4236]
[1726859616649,10.5,146.07,146.03,13.9236]
[1726859616843,10.5,146.07,146.03,10.5]
[1726859617054,1.3989,146.1,146.04,10.5]
[1726859617254,10.5,146.09,146.06,3.4229]
[1726859618751,1.3989,146.1,146.06,10.5]
[1726859619455,1.3989,146.1,146.07,3.4227]
[1726859619960,11.8989,146.1,146.07,3.4227]
[1726859620755,11.8989,146.1,146.05,10.5]
[1726859620756,10.5,146.09,146.04,10.5]
[1726859620950,10.5,146.08,146.03,10.5]
[1726859621147,10.5,146.06,146.03,3.4236]
[1726859624763,10.5,146.08,146.03,10.5]
[1726859624959,10.5,146.08,145.98,8.2451]
[1726859625260,10.5,146.08,146.04,10.5]
[1726859625563,10.5,146.08,146.04,3.4233]
[1726859625755,10.5,146.06,146.01,10.5]
[1726859625956,10.5,146.06,146.03,3.4237]
[1726859628763,10.5,146.06,145.98,8.2451]
[1726859628764,10.5,146.04,145.98,18.7451]
[1726859628965,10.5,146.02,145.98,17.341]
[1726859629470,10.5,146.02,145.99,3.4245]
[1726859629655,10.5,146.02,145.98,17.341]
[1726859629656,10.5,146.01,145.97,10.5]
[1726859629855,10.5,146.02,145.97,10.5]
[1726859630970,10.5,146.02,145.99,3.4245]
[1726859632667,10.5,146.01,145.98,3.4248]
[1726859633068,10.5,145.99,145.97,3.425]
[1726859633362,10.5,145.98,145.89,156.88729967]
[1726859633563,10.5,145.96,145.94,3.4258]
[1726859634762,10.5,145.96,145.91,10.5]
[1726859634968,10.5,145.97,145.92,10.5]
[1726859635361,10.5,145.98,145.95,3.4254]
[1726859638071,4.839,145.99,145.95,3.4254]
[1726859640371,1.4143,145.99,145.96,3.4254]
[1726859641061,1.3076,146.0,145.93,16.45]
[1726859641266,1.3076,146.0,145.95,16.45]
[1726859641472,1.3783,146.04,146.01,3.4241]
[1726859641767,1.3783,146.04,145.97,16.45]
[1726859641768,1.3323,146.05,145.98,3.35217879]
[1726859642174,4.7557,146.05,146.01,3.4241]
[1726859642671,1.3323,146.05,145.98,3.35217879]
[1726859642873,16.45,146.07,146.0,16.45]
[1726859643066,16.45,146.07,145.99,3.36827527]
[1726859643460,3.4233,146.05,146.01,3.424]
[1726859643970,3.4233,146.05,145.99,3.36827527]
[1726859644172,3.4231,146.06,146.02,3.4239]
[1726859644572,1.3864,146.08,145.99,19.81827527]
[1726859645475,1.3864,146.08,146.01,16.45]
[1726859645768,1.3864,146.08,146.03,16.45]
[1726859645974,4.8091,146.08,146.04,3.4233]
[1726859647161,3.4228,146.07,146.03,3.4237]
[1726859647866,19.8728,146.07,146.03,3.4237]
[1726859649363,3.4232,146.06,146.02,3.424]
[1726859649868,16.45,146.07,146.02,3.424]
[1726859650776,3.423,146.06,146.02,3.424]
[1726859652463,19.8729,146.07,146.03,3.4237]
[1726859652874,1.3864,146.08,146.03,16.45]
[1726859653077,1.3864,146.08,146.05,3.4233]
[1726859653277,1.3864,146.08,146.03,16.45]
[1726859653580,1.3864,146.08,146.05,3.4232]
[1726859653779,1.3864,146.08,146.01,16.45]
[1726859654175,3.4229,146.07,146.03,3.4236]
[1726859655667,3.4229,146.07,146.01,16.45]
[1726859655872,4.809,146.08,146.04,3.4235]
[1726859656268,4.809,146.08,146.01,16.45]
[1726859656875,3.423,146.07,146.03,3.4237]
[1726859658278,4.8091,146.08,146.04,3.4234]
[1726859658977,4.8091,146.08,146.05,3.4232]
[1726859660174,1.3864,146.08,146.01,16.45]
[1726859660374,1.3517,146.12,146.05,16.45]
[1726859660580,2.6973,146.12,146.05,16.45]
[1726859661274,1.3456,146.12,146.09,3.4221]
[1726859661471,1.3456,146.12,146.07,16.45]
[1726859662083,1.3456,146.12,146.09,3.4222]
[1726859666788,3.4214,146.13,146.09,3.4222]
[1726859666985,3.4212,146.14,146.1,3.422]
[1726859667491,3.4212,146.14,146.11,3.4218]
[1726859668793,1.4203,146.16,146.09,16.45]
[1726859668996,1.4203,146.16,146.1,16.45]
[1726859670082,1.4203,146.16,146.15,3.4209]
[1726859670294,1.3598,146.18,146.15,3.4209]
[1726859670679,4.7801,146.18,146.15,3.4209]
[1726859671797,1.3415,146.21,146.12,16.45]
[1726859671998,1.3415,146.21,146.14,16.45]
[1726859672386,3.4199,146.2,146.14,16.45]
[1726859672886,3.4199,146.2,146.17,3.4203]
[1726859673697,1.3415,146.21,146.14,16.45]
[1726859673889,1.3415,146.21,146.16,16.45]
[1726859674088,17.8312,146.26,146.16,16.45]
[1726859674299,19.2354,146.26,146.16,16.45]
[1726859674594,3.4193,146.23,146.19,3.42]
[1726859675399,3.4193,146.22,146.19,3.42]
[1726859677195,16.45,146.24,146.16,16.45]
[1726859677694,16.45,146.24,146.17,3.4203]
[1726859677695,3.4198,146.2,146.17,3.4203]
[1726859678593,3.4196,146.21,146.17,3.4203]
[1726859679601,3.4194,146.22,146.18,3.4202]
[1726859679902,3.4194,146.22,146.16,16.45]
[1726859680088,22.597699,146.26,146.18,16.45]
[1726859680089,19.2354,146.26,146.18,16.45]
[1726859680295,2.7854,146.26,146.18,16.45]
[1726859680804,3.4189,146.24,146.21,3.4195]
[1726859681697,3.4191,146.23,146.2,3.4197]
[1726859682004,16.45,146.25,146.2,3.4197]
[1726859682207,3.4194,146.22,146.19,3.4199]
[1726859684096,3.4192,146.23,146.2,3.4196]
[1726859684703,3.4191,146.23,146.19,3.4198]
[1726859687806,3.4193,146.22,146.19,3.4198]
[1726859690098,3.4193,146.22,146.19,13.9298]
[1726859691302,10.51,146.22,146.17,10.51]
[1726859691605,10.51,146.23,146.18,10.51]
[1726859691809,3.4194,146.22,146.18,13.9301]
[1726859692305,3.4192,146.23,146.2,10.51]
[1726859693096,3.4192,146.23,146.19,3.4199]
[1726859693303,3.4193,146.22,146.19,13.9299]
[1726859693494,10.51,146.23,146.18,10.51]
[1726859693697,3.4196,146.21,146.18,13.9302]
[1726859694108,2.7854,146.26,146.15,10.51]
[1726859694109,10.51,146.2,146.15,10.51]
[1726859694413,3.4199,146.2,146.17,10.51]
[1726859694908,3.4199,146.2,146.17,13.9304]
[1726859697902,2.7854,146.26,146.11,2.706]
[1726859697903,3.4196,146.21,146.18,13.9302]
[1726859698199,10.51,146.23,146.18,13.9302]
[1726859698403,3.4194,146.22,146.19,10.51]
[1726859698607,3.4194,146.22,146.19,13.9299]
[1726859698808,10.51,146.24,146.19,10.51]
[1726859699314,10.51,146.24,146.19,13.9298]
[1726859699616,3.4193,146.22,146.19,13.9298]
[1726859699914,10.51,146.25,146.2,10.51]
[1726859700099,3.4193,146.22,146.19,10.51]
[1726859700303,3.4193,146.22,146.19,13.9299]
[1726859700711,2.7854,146.26,146.19,10.51]
[1726859700712,3.4196,146.21,146.19,10.51]
[1726859700904,3.4196,146.21,146.18,13.9301]
[1726859701613,3.4194,146.22,146.18,13.9301]
[1726859701814,3.4194,146.22,146.19,3.4199]
[1726859702016,10.51,146.24,146.2,10.51]
[1726859702211,2.7854,146.26,146.22,10.51]
[1726859702415,10.51,146.24,146.2,10.51]
[1726859702722,10.51,146.24,146.19,10.51]
[1726859702916,10.51,146.22,146.19,10.51]
[1726859703222,3.4198,146.2,146.17,10.51]
[1726859705014,10.51,146.19,146.14,10.51]
[1726859705404,3.4205,146.17,146.14,10.51]
[1726859705819,10.51,146.19,146.14,10.51]
[1726859706317,3.4203,146.18,146.14,13.9311]
[1726859706718,3.4203,146.18,146.14,3.4211]
[1726859706915,13.9302,146.19,146.15,3.4209]
[1726859707624,3.4199,146.2,146.18,10.51]
[1726859708517,4.7283,146.21,146.18,10.51]
[1726859708825,1.3086,146.21,146.18,10.51]
[1726859709327,3.4198,146.2,146.18,10.51]
[1726859709622,10.51,146.2,146.16,13.9306]
[1726859709826,10.51,146.2,146.12,1.2964]
[1726859709827,10.51,146.17,146.12,1.2964]
[1726859710124,10.51,146.17,146.14,3.4211]
[1726859710523,10.51,146.18,146.14,10.51]
[1726859710927,1.3662,146.2,146.17,10.51]
[1726859711135,1.3086,146.21,146.17,10.51]
[1726859712228,3.4199,146.2,146.17,13.9303]
[1726859713033,4.7282,146.21,146.18,3.4202]
[1726859713333,50.0,146.2,146.18,13.9302]
[1726859714238,50.0,146.2,146.19,10.51]
[1726859715138,50.0,146.2,146.19,13.93]
[1726859716336,50.0,146.2,146.19,3.42]
[1726859716540,50.0,146.2,146.18,13.9301]
[1726859717539,50.0,146.2,146.18,10.51]
[1726859718328,50.0,146.2,146.17,10.51]
[1726859718849,3.42,146.19,146.17,10.51]
[1726859721246,3.4202,146.18,146.16,10.51]
[1726859721640,60.51,146.2,146.16,10.51]
[1726859721840,3.4203,146.18,146.16,10.51]
[1726859722547,3.4202,146.19,146.17,10.51]
[1726859722849,60.51,146.2,146.12,1.2964]
[1726859723050,60.51,146.2,146.16,10.51]
[1726859723448,3.4204,146.18,146.15,13.9309]
[1726859723837,3.4204,146.18,146.16,10.51]
[1726859724052,50.0,146.2,146.17,10.51]
[1726859724749,10.51,146.22,146.17,10.51]
[1726859724942,10.51,146.23,146.18,10.51]
[1726859725443,3.4195,146.21,146.18,13.9301]
[1726859725646,2.6726,146.25,146.18,3.4201]
[1726859725647,10.51,146.22,146.18,3.4201]
[1726859725851,10.51,146.22,146.17,10.51]
[1726859726445,3.4198,146.2,146.17,13.9302]
[1726859730954,2.6726,146.25,146.19,10.51]
[1726859731255,1.3064,146.25,146.22,10.51]
[1726859731455,3.4184,146.26,146.23,10.51]
[1726859732558,3.4186,146.25,146.23,10.51]
[1726859733257,4.81478214,146.29,146.24,10.51]
[1726859733258,1.3165,146.29,146.24,10.51]
[1726859733455,1.3165,146.29,146.25,10.51]
[1726859734253,3.418,146.28,146.25,13.9285]
[1726859735648,4.7343,146.29,146.26,3.4183]
[1726859736054,1.3165,146.29,146.25,10.51]
[1726859736866,3.4179,146.28,146.25,13.9285]
[1726859738354,1.3165,146.29,146.26,13.9283]
[1726859738355,4.7342,146.29,146.26,13.9283]
[1726859738560,10.51,146.33,146.28,10.51]
[1726859739354,10.51,146.32,146.28,10.51]
[1726859739558,10.51,146.32,146.26,10.51]
[1726859739860,10.51,146.31,146.26,10.51]
[1726859740060,10.51,146.31,146.26,13.9282]
[1726859740061,3.4178,146.29,146.26,13.9282]
[1726859740655,3.4179,146.28,146.26,13.9282]
[1726859741262,3.4179,146.28,146.25,13.9285]
[1726859741962,3.4178,146.29,146.26,3.4183]
[1726859743158,3.4178,146.29,146.25,13.9285]
[1726859744260,10.51,146.31,146.23,3.4189]
[1726859744453,10.51,146.29,146.25,10.51]
[1726859744652,3.4182,146.27,146.25,10.51]
[1726859745567,3.4182,146.27,146.24,10.51]
[1726859746066,3.4183,146.26,146.24,10.51]
[1726859746559,3.4183,146.26,146.22,1.3972]
[1726859746560,10.51,146.28,146.22,4.8164]
[1726859746761,10.51,146.27,146.22,10.51]
[1726859746962,11.9077,146.27,146.22,10.51]
[1726859747263,3.4187,146.25,146.22,13.9292]
[1726859749470,3.4187,146.25,146.23,10.51]
[1726859750174,11.9077,146.27,146.24,10.51]
[1726859750175,1.3977,146.27,146.24,10.51]
[1726859750672,11.9077,146.27,146.23,10.51]
[1726859750972,3.4185,146.26,146.23,13.929]
[1726859751168,11.9077,146.27,146.23,13.929]
[1726859752773,3.4186,146.25,146.23,13.929]
[1726859755078,3.4188,146.24,146.23,10.51]
[1726859755374,11.9077,146.27,146.22,10.51]
[1726859755673,3.4188,146.24,146.22,10.51]
[1726859758272,3.4187,146.25,146.22,13.9292]
[1726859759974,3.4185,146.26,146.23,3.4189]
[1726859760182,1.3977,146.27,146.23,10.51]
[1726859760489,1.3977,146.27,146.25,10.51]
[1726859760777,10.51,146.29,146.26,10.51]
[1726859760972,1.3874,146.31,146.28,10.51]
[1726859760973,2.7723,146.31,146.28,10.51]
[1726859761179,13.2823,146.31,146.27,10.51]
[1726859762584,3.4179,146.29,146.27,13.9281]
[1726859763085,10.2431,146.44,146.28,10.51]
[1726859763288,10.51,146.37,146.33,10.51]
[1726859763589,3.4165,146.34,146.32,10.51]
[1726859764690,3.4164,146.35,146.33,10.51]
[1726859764888,2.7479,146.39,146.34,10.51]
[1726859765090,2.7479,146.39,146.36,10.51]
[1726859765384,3.4158,146.37,146.35,10.51]
[1726859765593,10.51,146.38,146.34,10.51]
[1726859765781,3.4158,146.37,146.34,10.51]
[1726859765986,3.4158,146.37,146.35,10.51]
[1726859767184,3.4157,146.38,146.35,10.51]
[1726859767384,2.7479,146.39,146.25,6.05259462]
[1726859767385,1.3849,146.39,146.36,10.51]
[1726859767587,1.3849,146.39,146.36,13.9259]
[1726859767789,4.8004,146.39,146.36,13.9259]
[1726859768395,3.4156,146.38,146.36,13.9259]
[1726859768585,1.3849,146.39,146.35,13.9262]
[1726859768786,11.8949,146.39,146.35,10.51]
[1726859769284,3.4156,146.38,146.35,13.9262]
[1726859771895,3.4156,146.38,146.35,3.4162]
[1726859772098,3.4158,146.37,146.35,13.9262]
[1726859772492,3.4158,146.37,146.35,3.4162]
[1726859772790,3.4158,146.37,146.35,13.9262]
[1726859772994,1.3849,146.39,146.26,143.5566]
[1726859772995,11.8949,146.39,146.34,10.51]
[1726859773193,10.51,146.38,146.34,10.51]
[1726859773795,3.4161,146.36,146.34,10.51]
[1726859776499,3.4158,146.37,146.35,10.51]
[1726859776900,10.51,146.42,146.36,10.51]
[1726859777203,3.4153,146.39,146.37,10.51]
[1726859777896,3.4155,146.38,146.37,10.51]
[1726859778601,3.4158,146.37,146.33,1.3432]
[1726859778792,3.4158,146.37,146.34,10.51]
[1726859779197,3.4158,146.37,146.34,13.9264]
[1726859779393,10.51,146.39,146.34,10.51]
[1726859779597,3.4162,146.35,146.33,10.51]
[1726859779999,3.4165,146.34,146.28,1.3432]
[1726859780299,3.4165,146.34,146.31,13.9271]
[1726859782304,3.4165,146.34,146.32,10.51]
[1726859782809,3.4163,146.35,146.32,13.9269]
[1726859783205,3.4163,146.35,146.32,10.51]
[1726859783802,3.4161,146.36,146.33,10.51]
[1726859783998,1.3602,146.38,146.35,10.51]
[1726859784203,1.3602,146.38,146.36,10.51]
[1726859784402,3.4159,146.37,146.36,10.51]
[1726859785100,3.4159,146.37,146.35,13.9262]
[1726859785299,11.8702,146.38,146.34,13.9264]
[1726859785499,10.51,146.37,146.32,10.51]